bitfinex/quotes_BTCUSD_20240929
["timestamp","ask_amount","ask_price","bid_price","bid_amount"]
[1727617050716,0.13916912,65873.0,65872.0,0.158809]
[1727617050978,0.18466811,65873.0,65872.0,0.158809]
[1727617051428,0.20846516,65873.0,65872.0,0.158809]
[1727617052804,0.13916912,65873.0,65872.0,0.158809]
[1727617053284,0.18467441,65873.0,65872.0,0.007]
[1727617053534,0.13916912,65873.0,65872.0,0.158809]
[1727617054711,0.2074176,65873.0,65872.0,0.158809]
[1727617055620,0.13916912,65873.0,65872.0,0.158809]
[1727617055867,0.16296611,65873.0,65872.0,0.158809]
[1727617057507,0.31505176,65873.0,65872.0,0.158809]
[1727617058387,0.31507862,65873.0,65872.0,0.158809]
[1727617058587,0.4060766,65873.0,65872.0,0.158809]
[1727617060700,0.31507862,65873.0,65872.0,0.158809]
[1727617061887,0.31507862,65873.0,65872.0,0.007]
[1727617062119,0.49408547,65873.0,65872.0,0.007]
[1727617062585,0.380338,65873.0,65872.0,0.158809]
[1727617062822,0.532145,65873.0,65872.0,0.007]
[1727617063047,0.53177524,65873.0,65872.0,0.008654]
[1727617065160,0.5556012,65873.0,65872.0,0.008654]
[1727617069227,0.53180362,65873.0,65872.0,0.008654]
[1727617073376,0.66854366,65873.0,65872.0,0.008654]
[1727617075461,0.66854366,65873.0,65872.0,0.004654]
[1727617075913,0.66854366,65873.0,65872.0,0.001654]
[1727617076381,0.67154366,65873.0,65872.0,0.001654]
[1727617079580,0.51986307,65873.0,65872.0,0.001654]
[1727617079802,0.67148094,65873.0,65872.0,0.001654]
[1727617083051,0.60622286,65873.0,65872.0,0.001654]
[1727617083736,0.60622286,65873.0,65872.0,0.153463]
[1727617083737,0.35681586,65873.0,65872.0,0.153463]
[1727617083959,0.21998528,65873.0,65872.0,0.153463]
[1727617084249,0.20350615,65873.0,65872.0,0.163463]
[1727617084496,0.02808999,65873.0,65872.0,0.339263]
[1727617084747,0.02808999,65873.0,65872.0,0.362263]
[1727617084984,0.003828,65873.0,65872.0,0.362263]
[1727617085667,0.003828,65873.0,65872.0,0.365263]
[1727617086102,0.000828,65873.0,65872.0,0.362263]
[1727617086331,0.000828,65873.0,65872.0,0.376263]
[1727617086609,0.000828,65873.0,65872.0,0.378263]
[1727617086819,0.000828,65873.0,65872.0,0.376263]
[1727617087043,0.001828,65873.0,65872.0,0.390263]
[1727617087484,0.001828,65873.0,65872.0,0.5054096]
[1727617100821,0.001828,65873.0,65872.0,0.56001242]
[1727617101287,0.001828,65873.0,65872.0,0.5054096]
[1727617115853,0.001828,65873.0,65872.0,0.52361029]
[1727617116106,0.001828,65873.0,65872.0,0.40846369]
[1727617116343,0.001828,65873.0,65872.0,0.52361029]
[1727617125156,0.001828,65873.0,65872.0,0.40846369]
[1727617125392,0.001828,65873.0,65872.0,0.20966369]
[1727617126345,0.001828,65873.0,65872.0,0.191463]
[1727617128435,0.0197773,65873.0,65872.0,0.191463]
[1727617128653,0.001828,65873.0,65872.0,0.191463]
[1727617128891,0.0197773,65873.0,65872.0,0.191463]
[1727617129107,0.001828,65873.0,65872.0,0.191463]
[1727617129324,0.0197773,65873.0,65872.0,0.191463]
[1727617129548,0.001828,65873.0,65872.0,0.191463]
[1727617129776,0.0197773,65873.0,65872.0,0.191463]
[1727617130001,0.001828,65873.0,65872.0,0.191463]
[1727617130226,0.0197773,65873.0,65872.0,0.191463]
[1727617130448,0.001828,65873.0,65872.0,0.191463]
[1727617130674,0.0197773,65873.0,65872.0,0.191463]
[1727617130900,0.001828,65873.0,65872.0,0.191463]
[1727617131124,0.06530852,65873.0,65872.0,0.191463]
[1727617131629,0.0197773,65873.0,65872.0,0.191463]
[1727617136224,0.001828,65873.0,65872.0,0.191463]
[1727617182568,0.02683177,65873.0,65872.0,0.191463]
[1727617182769,0.001828,65873.0,65872.0,0.191463]
[1727617183034,0.02683177,65873.0,65872.0,0.191463]
[1727617183257,0.001828,65873.0,65872.0,0.191463]
[1727617183497,0.02683177,65873.0,65872.0,0.191463]
[1727617183733,0.001828,65873.0,65872.0,0.191463]
[1727617183969,0.02683177,65873.0,65872.0,0.191463]
[1727617184196,0.001828,65873.0,65872.0,0.191463]
[1727617184424,0.02683177,65873.0,65872.0,0.191463]
[1727617191460,0.001828,65873.0,65872.0,0.357463]
[1727617199995,0.001828,65873.0,65872.0,0.46651975]
[1727617200214,0.001828,65873.0,65872.0,0.357463]
[1727617201849,0.001828,65873.0,65872.0,0.63575094]
[1727617202112,0.001828,65873.0,65872.0,0.70397849]
[1727617202599,0.001828,65873.0,65872.0,0.68119742]
[1727617202846,0.001828,65873.0,65872.0,0.68319742]
[1727617203084,0.001828,65873.0,65872.0,0.83958548]
[1727617203325,0.001828,65873.0,65872.0,0.82558548]
[1727617203563,0.001828,65873.0,65872.0,0.780139]
[1727617204044,0.000828,65873.0,65872.0,0.766139]
[1727617204275,0.000828,65873.0,65872.0,0.764139]
[1727617204518,0.000828,65873.0,65872.0,0.778139]
[1727617204765,0.000828,65873.0,65872.0,0.792139]
[1727617205008,0.000828,65873.0,65872.0,0.83758584]
[1727617205231,0.000828,65873.0,65872.0,0.82358584]
[1727617205445,0.000828,65873.0,65872.0,0.83758584]
[1727617205913,0.000828,65873.0,65872.0,0.83958584]
[1727617206634,0.000828,65873.0,65872.0,0.794139]
[1727617209634,0.000828,65873.0,65872.0,0.792139]
[1727617209865,0.000828,65873.0,65872.0,0.9072856]
[1727617212448,0.04639478,65893.0,65892.0,0.161763]
[1727617212449,0.000827,65893.0,65892.0,0.161763]
[1727617214376,0.000827,65893.0,65892.0,0.189763]
[1727617214869,0.000827,65893.0,65892.0,0.161763]
[1727617215090,0.000827,65893.0,65892.0,0.175763]
[1727617215564,0.000827,65893.0,65892.0,0.189763]
[1727617222147,0.000827,65893.0,65892.0,0.289763]
[1727617222640,0.000827,65893.0,65892.0,0.189763]
[1727617247133,0.000827,65893.0,65892.0,0.179763]
[1727617247134,0.11170226,65893.0,65892.0,0.179763]
[1727617247372,0.20262113,65893.0,65892.0,0.028]
[1727617247825,0.44659807,65893.0,65892.0,0.028]
[1727617248499,0.44659807,65893.0,65892.0,0.014]
[1727617248500,0.67350465,65893.0,65892.0,0.014]
[1727617248733,0.77202192,65893.0,65892.0,0.024]
[1727617248955,0.65836718,65893.0,65892.0,0.01]
[1727617249409,0.65836718,65893.0,65892.0,0.008]
[1727617249632,0.151777,65886.0,65884.0,0.22690658]
[1727617249910,0.34209219,65885.0,65884.0,0.22690658]
[1727617250140,0.35567764,65885.0,65882.0,0.151784]
[1727617250365,0.06827747,65884.0,65882.0,0.151784]
[1727617250612,0.08186186,65884.0,65883.0,0.151784]
[1727617250834,0.05908959,65884.0,65883.0,0.151784]
[1727617251054,0.01358439,65884.0,65883.0,0.151784]
[1727617251528,0.05907764,65884.0,65883.0,0.151784]
[1727617251773,0.02879621,65884.0,65883.0,0.151784]
[1727617252501,0.07428946,65884.0,65883.0,0.151784]
[1727617252731,0.02879621,65884.0,65883.0,0.151784]
[1727617252967,0.02879621,65884.0,65883.0,0.162784]
[1727617258333,0.04549325,65890.0,65888.0,0.01]
[1727617258564,0.000827,65893.0,65890.0,0.156768]
[1727617258565,0.22690658,65891.0,65890.0,0.156768]
[1727617259059,0.000827,65893.0,65892.0,0.151763]
[1727617259286,0.000827,65893.0,65892.0,0.156763]
[1727617260630,0.02461501,65893.0,65892.0,0.156763]
[1727617260860,0.02461501,65893.0,65892.0,0.160763]
[1727617261101,0.02461501,65893.0,65892.0,0.56916216]
[1727617261361,0.02461501,65893.0,65892.0,0.57416216]
[1727617262079,0.02461501,65893.0,65892.0,0.4504096]
[1727617262323,0.02461501,65893.0,65892.0,0.46709281]
[1727617262775,0.02461501,65893.0,65892.0,0.47509281]
[1727617263717,0.000827,65893.0,65892.0,0.47509281]
[1727617266108,0.000827,65893.0,65892.0,0.4644096]
[1727617274188,0.000827,65893.0,65892.0,0.60298971]
[1727617283925,0.000827,65893.0,65892.0,0.4644096]
[1727617284392,0.000827,65893.0,65892.0,0.4664096]
[1727617285078,0.000827,65893.0,65892.0,0.4544096]
[1727617285516,0.000827,65893.0,65892.0,0.4484096]
[1727617285761,0.000827,65893.0,65892.0,0.73869754]
[1727617286052,0.000827,65893.0,65892.0,0.8950856]
[1727617286277,0.000827,65893.0,65892.0,0.8830856]
[1727617286550,0.000827,65906.0,65892.0,0.8830856]
[1727617286551,0.000827,65906.0,65905.0,0.401033]
[1727617286776,0.000827,65906.0,65905.0,0.639286]
[1727617287217,0.000827,65906.0,65905.0,0.641286]
[1727617287897,0.000827,65906.0,65905.0,0.639286]
[1727617288124,0.000827,65906.0,65905.0,0.641286]
[1727617288354,0.000827,65906.0,65905.0,0.653286]
[1727617288605,0.000827,65906.0,65905.0,0.667286]
[1727617289047,0.000827,65906.0,65905.0,0.669286]
[1727617289535,0.000827,65906.0,65905.0,0.667286]
[1727617290500,0.000827,65906.0,65905.0,0.677286]
[1727617290722,0.000827,65906.0,65905.0,0.679286]
[1727617291222,0.000827,65906.0,65905.0,0.665286]
[1727617291448,0.000827,65906.0,65905.0,0.6618594]
[1727617291667,0.000827,65906.0,65905.0,0.6898594]
[1727617295949,0.000827,65910.0,65909.0,0.178724]
[1727617296178,0.000827,65910.0,65909.0,0.74575854]
[1727617297084,0.000827,65910.0,65909.0,0.75975854]
[1727617297524,0.000827,65933.0,65925.0,0.184687]
[1727617297748,0.000827,65933.0,65925.0,0.30286694]
[1727617297965,0.000827,65933.0,65925.0,0.3455117]
[1727617298184,0.000827,65933.0,65925.0,0.34247836]
[1727617298849,0.000827,65933.0,65925.0,0.35647836]
[1727617299270,0.000827,65933.0,65925.0,0.37047836]
[1727617301032,0.02460072,65933.0,65925.0,0.37047836]
[1727617302219,0.02460072,65933.0,65925.0,0.3278336]
[1727617303293,0.000827,65933.0,65925.0,0.3278336]
[1727617304371,0.000827,65933.0,65925.0,0.33846131]
[1727617310619,0.02460107,65933.0,65925.0,0.33846131]
[1727617311338,0.092027,65932.0,65925.0,0.212687]
[1727617311577,0.0811,65927.0,65925.0,0.189687]
[1727617316015,0.092027,65932.0,65925.0,0.189687]
[1727617316259,0.0811,65931.0,65925.0,0.189687]
[1727617318343,0.0811,65931.0,65925.0,0.3048336]
[1727617320874,0.0811,65931.0,65925.0,0.189687]
[1727617321536,0.000827,65932.0,65925.0,0.42633286]
[1727617325638,0.000827,65932.0,65925.0,0.3048336]
[1727617326273,0.000827,65932.0,65925.0,0.33086694]
[1727617326526,0.000827,65932.0,65925.0,0.3278336]
[1727617331464,0.04624421,65932.0,65925.0,0.3278336]
[1727617332132,0.04624421,65932.0,65925.0,0.6608336]
[1727617332356,0.04550383,65931.0,65925.0,0.6608336]
[1727617334387,0.04550383,65930.0,65925.0,0.6608336]
[1727617335043,0.04550383,65930.0,65925.0,0.545687]
[1727617335259,0.04550383,65930.0,65925.0,0.6608336]
[1727617336358,0.04550383,65929.0,65925.0,0.6608336]
[1727617337262,0.0455473,65929.0,65925.0,0.6608336]
[1727617340402,0.0463753,65928.0,65925.0,0.6608336]
[1727617341771,0.04640361,65928.0,65925.0,0.6608336]
[1727617342473,0.04557561,65927.0,65925.0,0.6608336]
[1727617344532,0.000828,65928.0,65925.0,1.2507096]
[1727617344790,0.000828,65928.0,65925.0,1.2557096]
[1727617345484,0.000828,65928.0,65925.0,1.2437096]
[1727617345702,0.000828,65928.0,65925.0,1.2577096]
[1727617346154,0.000828,65928.0,65925.0,1.2437096]
[1727617346608,0.000828,65928.0,65925.0,1.2577096]
[1727617346846,0.000828,65928.0,65925.0,1.2557096]
[1727617347613,0.000828,65928.0,65925.0,1.2577096]
[1727617347852,0.000828,65928.0,65925.0,1.2557096]
[1727617353815,0.4481586,65926.0,65925.0,0.366]
[1727617354065,0.33351444,65926.0,65925.0,0.366]
[1727617354293,0.34870633,65926.0,65925.0,0.366]
[1727617354748,0.34870633,65926.0,65925.0,0.352]
[1727617355435,0.34870633,65926.0,65925.0,0.364]
[1727617355657,0.4626378,65926.0,65925.0,0.364]
[1727617355871,0.16828122,65926.0,65925.0,0.5722564]
[1727617356107,0.24417068,65926.0,65925.0,0.506687]
[1727617356322,0.000827,65926.0,65925.0,0.512687]
[1727617356538,0.05916925,65926.0,65925.0,0.512687]
[1727617356756,0.05916925,65926.0,65925.0,0.355]
[1727617356955,0.05916925,65926.0,65925.0,0.510687]
[1727617357164,0.05916925,65926.0,65925.0,0.347]
[1727617357367,0.01362894,65926.0,65925.0,0.349]
[1727617357597,0.01362894,65926.0,65925.0,0.353]
[1727617357793,0.01362894,65926.0,65925.0,0.504687]
[1727617358011,0.01362894,65926.0,65925.0,0.343]
[1727617358222,0.01362894,65926.0,65925.0,0.351]
[1727617358662,0.01362894,65926.0,65925.0,0.502687]
[1727617358923,0.01362894,65926.0,65925.0,0.351]
[1727617359140,0.01362894,65926.0,65925.0,0.502687]
[1727617359348,0.01362894,65926.0,65925.0,0.357]
[1727617359552,0.01362894,65926.0,65925.0,0.351]
[1727617359971,0.01362894,65926.0,65925.0,0.508687]
[1727617360223,0.01362894,65926.0,65925.0,0.494687]
[1727617360440,0.01362894,65926.0,65925.0,0.514687]
[1727617370662,0.0910587,65931.0,65928.0,0.01]
[1727617370663,0.06140782,65930.0,65928.0,0.01]
[1727617370891,0.000827,65932.0,65931.0,0.184673]
[1727617371113,0.000827,65932.0,65931.0,0.33996094]
[1727617373042,0.000827,65932.0,65931.0,0.58086752]
[1727617373287,0.000827,65932.0,65931.0,0.34496094]
[1727617373542,0.000827,65932.0,65931.0,0.515349]
[1727617373759,0.000827,65932.0,65931.0,0.804049]
[1727617374464,0.000827,65932.0,65931.0,0.790049]
[1727617374685,0.11374749,65950.0,65931.0,0.790049]
[1727617374686,0.09099799,65953.0,65951.0,0.005]
[1727617374902,0.09110489,65960.0,65953.0,0.179623]
[1727617375329,0.0001069,65960.0,65953.0,0.179623]
[1727617375828,0.0001069,65960.0,65953.0,0.161623]
[1727617376308,0.02459295,65959.0,65953.0,0.161623]
[1727617376554,0.02459295,65959.0,65953.0,0.175623]
[1727617377054,0.02459295,65959.0,65953.0,0.189623]
[1727617377303,0.02459295,65959.0,65953.0,0.161623]
[1727617378086,0.02459295,65959.0,65953.0,0.170623]
[1727617378843,0.02459295,65959.0,65953.0,0.176623]
[1727617379336,0.02459295,65959.0,65953.0,0.167623]
[1727617379823,0.02459295,65959.0,65953.0,0.175623]
[1727617381961,0.000827,65959.0,65953.0,0.175623]
[1727617382708,0.077,65954.0,65953.0,0.170623]
[1727617382961,0.077,65954.0,65953.0,0.019]
[1727617383252,0.09049793,65954.0,65953.0,0.019]
[1727617383492,0.09049793,65954.0,65953.0,0.024]
[1727617383986,0.09049793,65954.0,65953.0,0.019]
[1727617384494,0.18699793,65954.0,65953.0,0.019]
[1727617385235,0.33944493,65954.0,65953.0,0.014]
[1727617385490,0.18782493,65954.0,65953.0,0.014]
[1727617385761,0.33944493,65954.0,65953.0,0.014]
[1727617386249,0.18782493,65954.0,65953.0,0.014]
[1727617386916,0.18782493,65954.0,65953.0,0.165623]
[1727617387351,0.18782493,65954.0,65953.0,0.014]
[1727617387568,0.18782493,65954.0,65953.0,0.165623]
[1727617387778,0.09132493,65954.0,65953.0,0.165623]
[1727617388198,0.09132493,65954.0,65953.0,0.170623]
[1727617389285,0.02469414,65954.0,65953.0,0.170623]
[1727617389505,0.03819046,65954.0,65953.0,0.170623]
[1727617393554,0.03819046,65954.0,65953.0,0.37389142]
[1727617393780,0.01442332,65954.0,65953.0,0.37389142]
[1727617393976,0.000927,65954.0,65953.0,0.37389142]
[1727617394446,0.000927,65954.0,65953.0,0.198623]
[1727617395350,0.000927,65954.0,65953.0,0.37389142]
[1727617395578,0.000927,65954.0,65953.0,0.7095198]
[1727617396059,0.000927,65954.0,65953.0,0.53425138]
[1727617396292,0.000927,65954.0,65953.0,0.257923]
[1727617396513,0.000927,65954.0,65953.0,0.243923]
[1727617396746,0.000927,65954.0,65953.0,0.42919142]
[1727617396990,0.000927,65954.0,65953.0,0.43719142]
[1727617397206,0.000927,65954.0,65953.0,0.261923]
[1727617397639,0.000927,65954.0,65953.0,0.44324289]
[1727617397856,0.000927,65954.0,65953.0,0.44021094]
[1727617398686,0.000927,65954.0,65953.0,0.61547936]
[1727617399730,0.000927,65954.0,65953.0,0.53317936]
[1727617399963,0.000927,65954.0,65953.0,0.35791094]
[1727617401085,0.000927,65954.0,65953.0,0.202623]
[1727617401780,0.000927,65954.0,65953.0,0.35791094]
[1727617406209,0.000927,65954.0,65953.0,0.50277269]
[1727617406414,0.000927,65954.0,65953.0,0.60097269]
[1727617407709,0.000927,65954.0,65953.0,0.42047269]
[1727617407922,0.000927,65954.0,65953.0,0.41047269]
[1727617408140,0.000927,65954.0,65953.0,0.36191094]
[1727617408395,0.000927,65954.0,65953.0,0.35391094]
[1727617408648,0.000927,65954.0,65953.0,0.36791094]
[1727617409309,0.000927,65954.0,65953.0,0.55341094]
[1727617409508,0.000927,65954.0,65953.0,0.68693018]
[1727617410440,0.000927,65954.0,65953.0,0.69759254]
[1727617411552,0.000927,65954.0,65953.0,0.68359254]
[1727617411770,0.000927,65954.0,65953.0,0.69759254]
[1727617412010,0.000927,65954.0,65953.0,0.68359254]
[1727617412287,0.00097683,65954.0,65953.0,0.68359254]
[1727617412546,0.00097683,65954.0,65953.0,0.69759254]
[1727617412776,0.00097683,65954.0,65953.0,0.5640733]
[1727617416442,0.00097683,65954.0,65953.0,0.6640733]
[1727617416629,0.000827,65959.0,65958.0,0.466211]
[1727617416872,0.000827,65959.0,65958.0,0.79676736]
[1727617417116,0.000827,65959.0,65958.0,0.79876736]
[1727617417376,0.000827,65959.0,65958.0,0.95515542]
[1727617418935,0.000827,65959.0,65958.0,0.96915542]
[1727617419160,0.000827,65959.0,65958.0,0.98315542]
[1727617419612,0.00032097,65968.0,65965.0,0.54146342]
[1727617419835,0.00032097,65968.0,65965.0,0.69675136]
[1727617420081,0.00032097,65968.0,65965.0,0.77682082]
[1727617421509,0.00032097,65968.0,65965.0,0.80482082]
[1727617422422,0.00032097,65968.0,65965.0,0.90682082]
[1727617423355,0.06797213,65986.0,65965.0,0.90682082]
[1727617423356,0.22690658,65986.0,65985.0,0.179549]
[1727617423582,0.000827,65992.0,65990.0,0.005]
[1727617424105,0.000827,65992.0,65991.0,0.151535]
[1727617424713,0.000827,65992.0,65990.0,0.005]
[1727617424941,0.15236,65992.0,65990.0,0.005]
[1727617425186,0.15236,65992.0,65991.0,0.005]
[1727617425187,0.000827,65992.0,65991.0,0.005]
[1727617425411,0.000827,65992.0,65991.0,0.009]
[1727617425629,0.15236,65992.0,65991.0,0.008]
[1727617425843,0.000827,65992.0,65991.0,0.005]
[1727617426751,0.15236,65992.0,65991.0,0.005]
[1727617426970,0.000827,65992.0,65991.0,0.005]
[1727617427608,0.000827,65992.0,65991.0,0.006]
[1727617427859,0.15236,65992.0,65991.0,0.009]
[1727617428099,0.43733164,65992.0,65991.0,0.009]
[1727617428321,0.43733164,65992.0,65991.0,0.004]
[1727617428322,0.4447659,65992.0,65991.0,0.004]
[1727617428776,0.4005067,65992.0,65991.0,0.009]
[1727617428999,0.4005067,65992.0,65991.0,0.005]
[1727617429500,0.32466,65992.0,65991.0,0.005]
[1727617430852,0.32466,65992.0,65991.0,0.006]
[1727617430993,0.32466,65992.0,65991.0,0.007]
[1727617431226,0.32466,65992.0,65991.0,0.006]
[1727617431435,0.32466,65992.0,65991.0,0.005]
[1727617432275,0.32466,65992.0,65991.0,0.006]
[1727617432483,0.32566,65992.0,65991.0,0.006]
[1727617433285,0.39366297,65992.0,65991.0,0.006]
[1727617433763,0.174127,65992.0,65991.0,0.006]
[1727617433977,0.32466,65992.0,65991.0,0.005]
[1727617434193,0.32466,65992.0,65991.0,0.006]
[1727617434194,0.33666,65992.0,65991.0,0.006]
[1727617434579,0.34325528,65992.0,65991.0,0.005]
[1727617434723,0.34425528,65992.0,65991.0,0.006]
[1727617435393,0.38958427,65992.0,65991.0,0.006]
[1727617435607,0.41225825,65992.0,65991.0,0.006]
[1727617436053,0.41625825,65992.0,65991.0,0.006]
[1727617437326,0.02442228,65992.0,65991.0,0.006]
[1727617437555,0.02442228,65992.0,65991.0,0.157535]
[1727617437782,0.0697556,65992.0,65991.0,0.157535]
[1727617438262,0.02442228,65992.0,65991.0,0.157535]
[1727617438482,0.01442228,65992.0,65991.0,0.156535]
[1727617438692,0.000827,65992.0,65991.0,0.156535]
[1727617438926,0.000827,65992.0,65991.0,0.161535]
[1727617439161,0.01441846,65992.0,65991.0,0.161535]
[1727617439423,0.01441846,65992.0,65991.0,0.158535]
[1727617439687,0.24295146,65992.0,65991.0,0.007]
[1727617439902,0.35986257,65992.0,65991.0,0.007]
[1727617440108,0.35986257,65992.0,65991.0,0.005]
[1727617440330,0.36086257,65992.0,65991.0,0.011]
[1727617440537,0.36086257,65992.0,65991.0,0.018]
[1727617440538,0.36186257,65992.0,65991.0,0.018]
[1727617440750,0.3846183,65992.0,65991.0,0.012]
[1727617440962,0.3866183,65992.0,65991.0,0.012]
[1727617441175,0.26871228,65992.0,65991.0,0.005]
[1727617442067,0.11717928,65992.0,65991.0,0.005]
[1727617442301,0.26871228,65992.0,65991.0,0.005]
[1727617442506,0.11717928,65992.0,65991.0,0.005]
[1727617442715,0.26871228,65992.0,65991.0,0.005]
[1727617443619,0.26671228,65992.0,65991.0,0.005]
[1727617444070,0.26671228,65992.0,65991.0,0.006]
[1727617444298,0.24295655,65992.0,65991.0,0.006]
[1727617444524,0.24295655,65992.0,65991.0,0.005]
[1727617444759,0.24295655,65992.0,65991.0,0.007]
[1727617444983,0.34233504,65992.0,65991.0,0.007]
[1727617446192,0.61640346,65992.0,65991.0,0.002]
[1727617446451,0.661729,65992.0,65991.0,0.002]
[1727617446683,0.661729,65992.0,65987.0,0.005]
[1727617446684,0.151542,65988.0,65987.0,0.005]
[1727617446937,0.1652029,65988.0,65987.0,0.005]
[1727617447400,0.18896049,65988.0,65987.0,0.005]
[1727617447888,0.19496049,65988.0,65987.0,0.005]
[1727617449932,0.33065893,65988.0,65987.0,0.005]
[1727617450337,0.37599096,65988.0,65987.0,0.005]
[1727617451264,0.151545,65987.0,65986.0,0.006654]
[1727617451628,0.16520463,65987.0,65986.0,0.006654]
[1727617451845,0.24440463,65987.0,65986.0,0.006654]
[1727617451986,0.28973666,65987.0,65986.0,0.001654]
[1727617452647,0.38643666,65987.0,65986.0,0.001654]
[1727617452848,0.48344488,65987.0,65986.0,0.001654]
[1727617453320,0.50710117,65987.0,65986.0,0.001654]
[1727617453518,0.51010117,65987.0,65986.0,0.001654]
[1727617453792,0.44211285,65987.0,65986.0,0.001654]
[1727617454014,0.51018266,65987.0,65986.0,0.001654]
[1727617454479,0.41317444,65987.0,65986.0,0.001654]
[1727617454926,0.41318891,65987.0,65986.0,0.001654]
[1727617455355,0.34510463,65987.0,65986.0,0.001654]
[1727617455933,0.36886221,65987.0,65986.0,0.001654]
[1727617456345,0.61472735,65987.0,65986.0,0.001654]
[1727617456930,0.77111541,65987.0,65986.0,0.001654]
[1727617457128,0.74735783,65987.0,65986.0,0.001654]
[1727617457610,0.74654871,65987.0,65986.0,0.001654]
[1727617458279,0.65576967,65987.0,65986.0,0.001654]
[1727617459377,0.65590848,65987.0,65986.0,0.001654]
[1727617460021,0.67966593,65987.0,65986.0,0.001654]
[1727617460234,0.89610148,65987.0,65986.0,0.001654]
[1727617461114,0.87234403,65987.0,65986.0,0.001654]
[1727617461306,0.89510453,65987.0,65986.0,0.001654]
[1727617461521,0.89210453,65987.0,65986.0,0.001654]
[1727617461738,1.05346269,65987.0,65986.0,0.002654]
[1727617462426,0.90010453,65987.0,65986.0,0.002654]
[1727617462647,1.00010453,65987.0,65986.0,0.002654]
[1727617462865,1.01010453,65987.0,65986.0,0.003654]
[1727617463292,1.01010453,65987.0,65986.0,0.00030197]
[1727617463293,1.01710453,65987.0,65986.0,0.00030197]
[1727617463511,0.327481,65971.0,65970.0,0.27648538]
[1727617463741,0.7346206,65971.0,65970.0,0.27648538]
[1727617463958,0.7346206,65971.0,65970.0,0.22690658]
[1727617463959,0.73278483,65971.0,65970.0,0.22690658]
[1727617464170,0.73278483,65971.0,65963.0,0.23690658]
[1727617464171,0.151597,65964.0,65963.0,0.23690658]
[1727617464403,0.23335588,65964.0,65963.0,0.23690658]
[1727617464851,0.16516978,65964.0,65963.0,0.01]
[1727617465322,0.21061439,65964.0,65963.0,0.01]
[1727617465763,0.05901739,65964.0,65963.0,0.01]
[1727617465976,0.21061439,65964.0,65963.0,0.01]
[1727617466221,0.01357278,65964.0,65963.0,0.01]
[1727617466450,0.01357278,65964.0,65963.0,0.015]
[1727617466451,0.16616978,65964.0,65963.0,0.015]
[1727617466665,0.01557278,65964.0,65963.0,0.015]
[1727617466888,0.16716978,65964.0,65963.0,0.015]
[1727617467321,0.26735422,65964.0,65963.0,0.015]
[1727617468070,0.26735422,65964.0,65963.0,0.01]
[1727617468295,0.21258436,65964.0,65963.0,0.005]
[1727617468514,0.16716978,65964.0,65963.0,0.011654]
[1727617468961,0.16716978,65964.0,65963.0,0.016654]
[1727617470784,0.01557278,65964.0,65963.0,0.016654]
[1727617471229,0.01557278,65964.0,65963.0,0.168254]
[1727617471912,0.002,65964.0,65963.0,0.168254]
[1727617473722,0.002,65964.0,65963.0,0.264454]
[1727617476007,0.002,65964.0,65963.0,0.254454]
[1727617477653,0.002,65964.0,65963.0,0.006654]
[1727617477928,0.002,65964.0,65963.0,0.153254]
[1727617478178,0.002,65964.0,65963.0,0.158254]
[1727617478179,0.01556886,65964.0,65963.0,0.158254]
[1727617478401,0.002,65964.0,65963.0,0.158254]
[1727617478885,0.0787726,65964.0,65963.0,0.158254]
[1727617479138,0.002,65964.0,65963.0,0.158254]
[1727617479407,0.01556886,65964.0,65963.0,0.158254]
[1727617479649,0.002,65964.0,65963.0,0.158254]
[1727617480137,0.01556886,65964.0,65963.0,0.159908]
[1727617480386,0.002,65964.0,65963.0,0.159908]
[1727617480613,0.01556886,65964.0,65963.0,0.159908]
[1727617480843,0.002,65964.0,65963.0,0.159908]
[1727617481059,0.01556886,65964.0,65963.0,0.159908]
[1727617481296,0.002,65964.0,65963.0,0.159908]
[1727617481525,0.01871579,65964.0,65963.0,0.159908]
[1727617481977,0.002,65964.0,65963.0,0.159908]
[1727617482163,0.03933168,65964.0,65963.0,0.159908]
[1727617482415,0.02576282,65964.0,65963.0,0.159908]
[1727617482814,0.03933168,65964.0,65963.0,0.159908]
[1727617483552,0.02576282,65964.0,65963.0,0.159908]
[1727617484216,0.03933168,65964.0,65963.0,0.159908]
[1727617484858,0.03933168,65964.0,65963.0,0.154908]
[1727617485081,0.03933168,65964.0,65963.0,0.159908]
[1727617485532,0.02576282,65964.0,65963.0,0.159908]
[1727617485747,0.03933168,65964.0,65963.0,0.159908]
[1727617487803,0.002,65964.0,65963.0,0.159908]
[1727617490079,0.0252392,65964.0,65963.0,0.159908]
[1727617490341,0.01556148,65964.0,65963.0,0.159908]
[1727617491032,0.03932445,65964.0,65963.0,0.159908]
[1727617492286,0.03932445,65964.0,65963.0,0.008308]
[1727617492287,0.01556148,65964.0,65963.0,0.008308]
[1727617492512,0.10769869,65964.0,65963.0,0.008308]
[1727617492741,0.10852669,65964.0,65963.0,0.008308]
[1727617492960,0.01638948,65964.0,65963.0,0.008308]
[1727617493890,0.16798648,65964.0,65963.0,0.008308]
[1727617495486,0.01638948,65964.0,65963.0,0.008308]
[1727617497770,0.01638948,65964.0,65963.0,0.159908]
[1727617497979,0.01638948,65964.0,65963.0,0.008308]
[1727617499242,0.06182104,65964.0,65963.0,0.008308]
[1727617500245,0.06182104,65964.0,65963.0,0.159908]
[1727617500448,0.06182104,65964.0,65963.0,0.329508]
[1727617500449,0.01638948,65964.0,65963.0,0.329508]
[1727617501155,0.002828,65964.0,65963.0,0.329508]
[1727617501578,0.002828,65964.0,65963.0,0.44437722]
[1727617503563,0.002828,65964.0,65963.0,0.329508]
[1727617506841,0.01448078,65964.0,65963.0,0.329508]
[1727617507505,0.01448078,65964.0,65963.0,0.159908]
[1727617507722,0.002828,65964.0,65963.0,0.159908]
[1727617507953,0.01567211,65964.0,65963.0,0.159908]
[1727617508203,0.002828,65964.0,65963.0,0.159908]
[1727617508437,0.01588141,65964.0,65963.0,0.159908]